fUSD/lending_fUSD_20250911
["ID","MTS","AMOUNT","RATE_DAILY","PERIOD"]
[384943737,1757629889545,-191.73,0.00027397,7]
[384943738,1757629889555,-668.809954,0.00027397,7]
[384943739,1757629889564,-1176.0,0.00027594,2]
[384943740,1757629889573,-191.73,0.00027671,7]
[384943741,1757629889583,-589.43351781,0.00027671,7]
[384943742,1757629892500,-351.50648219,0.00027671,7]
[384943743,1757629892509,-107.71290757,0.00027671,7]
[384943744,1757629892520,-561.09704643,0.00027671,7]
[384943745,1757629892529,-380.27160412,0.00027671,7]
[384943746,1757629892557,-191.73,0.00027397,7]
[384943747,1757629892567,-530.26839588,0.00027671,7]
[384943748,1757629892576,-400.0,0.00027671,7]
[384943749,1757629892586,-668.809954,0.00027671,7]
[384943750,1757629892596,-191.73,0.00027671,7]
[384943751,1757629892605,-191.73,0.00027671,7]
[384943752,1757629892615,-668.809954,0.00027671,7]
[384943753,1757629892624,-150.0,0.00027795,2]
[384943754,1757629892633,-852.73166534,0.00027945,7]
[384943755,1757629892643,-1504.05,0.00027945,7]
[384943756,1757629892652,-343.254013,0.00027945,7]
[384943757,1757629892661,-1051.32596646,0.00027945,7]
[384943758,1757629892672,-70.46403354,0.00027945,7]
[384943759,1757629892682,-151.0,0.00027945,7]
[384943760,1757629892691,-123.28613281,0.00027945,7]
[384943761,1757629892702,-381.30386719,0.00027945,7]
[384943762,1757629892712,-343.254013,0.00027945,7]
[384943763,1757629892721,-151.0,0.00027945,7]
[384943764,1757629892730,-1237.47,0.00027945,7]
[384943765,1757629892739,-952.62,0.00027945,7]
[384943766,1757629892749,-903.12,0.00027945,7]
[384943767,1757629892758,-52.61367881,0.00027945,7]
[384943768,1757629892771,-98.38632119,0.00027945,7]
[384943769,1757629892780,-343.254013,0.00027945,7]
[384943770,1757629892790,-176.81628626,0.00027945,7]
[384943771,1757629892801,-434.43371374,0.00027945,7]
[384943772,1757629892811,-361.25838635,0.00027945,7]
[384943773,1757629892838,-254.74796276,0.00027671,7]
[384943774,1757629893974,-668.809954,0.00027397,7]
[384943775,1757629893983,-400.0,0.00027397,7]
[384943776,1757629893992,-1007.09,0.00027397,7]
[384943777,1757629894002,-400.0,0.00027397,7]
[384943778,1757629894011,-414.06199124,0.00027671,7]
[384943779,1757629894021,-191.73,0.00027671,7]
[384943780,1757629894030,-191.73,0.00027671,7]
[384943781,1757629894039,-668.809954,0.00027671,7]
[384943782,1757629894049,-400.0,0.00027671,7]
[384943783,1757629894058,-668.809954,0.00027671,7]
[384943784,1757629894068,-1007.09,0.00027671,7]
[384943785,1757629894077,-1002.25161365,0.00027945,7]
[384943786,1757629894087,-151.0,0.00027945,7]
[384943787,1757629894096,-343.254013,0.00027945,7]
[384943788,1757629894107,-151.0,0.00027945,7]
[384943789,1757629894117,-4388.73,0.00027945,7]
[384943790,1757629894127,-1818.69,0.00027945,7]
[384943791,1757629894137,-6798.85,0.00027945,7]
[384943792,1757629894147,-400.0,0.00027945,7]
[384943793,1757629894157,-1092.01,0.00027945,7]
[384943794,1757629894167,-1238.37,0.00027945,7]
[384943795,1757629894176,-400.0,0.00027945,7]
[384943796,1757629894186,-1611.12,0.00027945,7]
[384943797,1757629894195,-611.9,0.00027945,7]
[384943798,1757629894204,-4974.77,0.00027945,7]
[384943799,1757629894214,-1417.03,0.00027945,7]
[384943800,1757629894223,-400.0,0.00027945,7]
[384943801,1757629894233,-1233.48,0.00027945,7]
[384943802,1757629894243,-151.0,0.00027945,7]
[384943803,1757629894252,-463.15,0.00027945,7]
[384943804,1757629894262,-1367.43,0.00027945,7]
[384943805,1757629894271,-528.38,0.00027945,7]
[384943806,1757629894282,-1164.24,0.00027945,7]
[384943807,1757629894292,-3481.86027491,0.00027945,7]
[384943808,1757629894411,-400.0,0.00027397,7]
[384943809,1757629894420,-783.49816159,0.00027945,7]
[384943810,1757629894441,-623.54463831,0.00027397,7]
[384943811,1757629894453,-45.26531569,0.00027397,7]
[384943812,1757629894464,-773.3515635,0.00027945,7]
[384943813,1757629894473,-645.71,0.00027945,7]
[384943814,1757629894481,-408.08,0.00027945,7]
[384943815,1757629894492,-1889.5,0.00027945,7]
[384943816,1757629894502,-510.22,0.00027945,7]
[384943817,1757629894511,-960.33,0.00027945,7]
[384943818,1757629894520,-2522.13,0.00027945,7]
[384943819,1757629894529,-1042.99,0.00027945,7]
[384943820,1757629894539,-408.76,0.00027945,7]
[384943821,1757629894549,-1266.4,0.00027945,7]
[384943822,1757629894559,-400.0,0.00027945,7]
[384943823,1757629894567,-2534.05,0.00027945,7]
[384943824,1757629894576,-400.0,0.00027945,7]
[384943825,1757629894586,-1285.69,0.00027945,7]
[384943826,1757629894595,-220.462256,0.00027945,7]
[384943827,1757629894603,-498.61,0.00027945,7]
[384943828,1757629894612,-2264.95,0.00027945,7]
[384943829,1757629894622,-400.0,0.00027945,7]
[384943830,1757629894631,-220.462256,0.00027945,7]
[384943831,1757629894643,-474.52,0.00027945,7]
[384943832,1757629894652,-400.0,0.00027945,7]
[384943833,1757629894661,-2090.48,0.00027945,7]
[384943834,1757629894670,-832.31,0.00027945,7]
[384943835,1757629894679,-220.462256,0.00027945,7]
[384943836,1757629894688,-400.0,0.00027945,7]
[384943837,1757629894698,-1371.75,0.00027945,7]
[384943838,1757629894707,-530.66,0.00027945,7]
[384943839,1757629894716,-1966.72,0.00027945,7]
[384943840,1757629894726,-220.462256,0.00027945,7]
[384943841,1757629894735,-560.98,0.00027945,7]
[384943842,1757629894745,-8238.16,0.00027945,7]
[384943843,1757629894755,-400.0,0.00027945,7]
[384943844,1757629894768,-2540.93,0.00027945,7]
[384943845,1757629894777,-450.71,0.00027945,7]
[384943846,1757629894786,-400.0,0.00027945,7]
[384943847,1757629894796,-1316.21,0.00027945,7]
[384943848,1757629894805,-1517.53,0.00027945,7]
[384943849,1757629894814,-1511.08,0.00027945,7]
[384943850,1757629894823,-1800.02,0.00027945,7]
[384943851,1757629894832,-977.75,0.00027945,7]
[384943852,1757629894841,-1534.92,0.00027945,7]
[384943853,1757629894850,-1918.81,0.00027945,7]
[384943854,1757629894860,-3622.25,0.00027945,7]
[384943855,1757629894870,-2204.79,0.00027945,7]
[384943856,1757629894879,-760.76,0.00027945,7]
[384943857,1757629894889,-1134.01,0.00027945,7]
[384943858,1757629894899,-400.0,0.00027945,7]
[384943859,1757629894908,-4210.25,0.00027945,7]
[384943860,1757629894918,-151.0,0.00027945,7]
[384943861,1757629894927,-400.0,0.00027945,7]
[384943862,1757629894936,-590.95,0.00027945,7]
[384943863,1757629894946,-1302.24,0.00027945,7]
[384943864,1757629894955,-151.0,0.00027945,7]
[384943865,1757629894966,-513.17,0.00027945,7]
[384943866,1757629894975,-1528.91,0.00027945,7]
[384943867,1757629894984,-495.61,0.00027945,7]
[384943868,1757629894993,-1635.6,0.00027945,7]
[384943869,1757629895002,-192.062084,0.00027945,7]
[384943870,1757629895012,-225.526849,0.00027945,7]
[384943871,1757629895021,-865.29,0.00027945,7]
[384943872,1757629895031,-1087.32,0.00027945,7]
[384943873,1757629895040,-3361.26,0.00027945,7]
[384943874,1757629895049,-225.526849,0.00027945,7]
[384943875,1757629895060,-3243.67,0.00027945,7]
[384943876,1757629895070,-147.88312131,0.00027945,7]
[384943877,1757629895127,221.0,0.000234,5]
[384943878,1757629895150,74.0,0.000234,5]
[384943879,1757629896074,-400.0,0.00027397,7]
[384943880,1757629896083,-400.0,0.00027397,7]
[384943881,1757629896092,-151.0,0.00027397,7]
[384943882,1757629896101,-400.0,0.00027397,7]
[384943883,1757629896110,-151.0,0.00027397,7]
[384943884,1757629896119,-718.35177496,0.00027594,2]
[384943885,1757629896509,-178.64822504,0.00027594,2]
[384943886,1757629896518,-400.0,0.00027671,7]
[384943887,1757629896527,-668.809954,0.00027671,7]
[384943888,1757629896536,-400.0,0.00027671,7]
[384943889,1757629896545,-668.809954,0.00027671,7]
[384943890,1757629896554,-400.0,0.00027671,7]
[384943891,1757629896563,-143.33039313,0.00027671,7]
[384943892,1757629896575,-7.66960687,0.00027671,7]
[384943893,1757629896584,-151.0,0.00027671,7]
[384943894,1757629896593,-400.0,0.00027671,7]
[384943895,1757629896602,-3.11687869,0.00027945,7]
[384943896,1757629896611,-101.26407444,0.00027945,7]
[384943897,1757629896622,-977.21877202,0.00027945,7]
[384943898,1757629896759,-379.21409398,0.00027397,7]
[384943899,1757629904345,-82.9834069,0.0002499,2]
[384943900,1757629910677,-417.0165931,0.0002499,2]
[384943901,1757629914930,-132.08021855,0.000249,2]
[384943902,1757629917635,-94.32176004,0.000249,2]
[384943903,1757629917667,-328.94208564,0.0002499,2]
[384943904,1757629918170,-86.78714553,0.0002499,2]
[384943906,1757629918683,-84.27076883,0.0002499,2]
[384943907,1757629918692,-315.72923117,0.0002499,2]
[384943908,1757629919594,-115.72923117,0.0002499,2]
[384943909,1757629919731,-68.54153766,0.0002499,2]
[384943910,1757629919742,-42.13120976,0.0002499,2]
[384943911,1757629920156,-94.32176004,0.0002499,2]
[384943912,1757629920180,-363.5470302,0.0002499,2]
[384943913,1757629920189,-136.4529698,0.0002499,2]
[384943914,1757629920537,-184.27076883,0.0002499,2]
[384943915,1757629922309,-179.27626137,0.0002499,2]
[384943916,1757629922358,-121.95697062,0.0002499,2]
[384943917,1757629929869,-341.44747726,0.0002499,2]
[384943918,1757629929892,-36.59555212,0.0002499,2]
[384943919,1757629937546,-500.0,0.0002499,2]
[384943920,1757629937578,-500.0,0.0002499,2]
[384943921,1757629937611,-272.79293726,0.0002499,2]
[384943922,1757629937642,-500.0,0.0002499,2]
[384943923,1757629937673,-500.0,0.0002499,2]
[384943924,1757629938750,-411.78567509,0.0002499,2]
[384943926,1757629944582,-88.21432491,0.0002499,2]
[384943927,1757629944612,-500.0,0.0002499,2]
[384943928,1757629944642,-500.0,0.0002499,2]
[384943929,1757629944672,-183.93825096,0.0002499,2]
[384943930,1757629944825,-316.06174904,0.0002499,2]
[384943931,1757629952710,-375.97394886,0.0002499,2]
[384943932,1757629959885,-194.53,0.00025267,2]
[384943933,1757629973889,-301.87218856,0.00025267,2]
[384943934,1757629994721,161.08,0.00013204,2]
[384943935,1757630060219,-187.921251,0.00025267,7]
[384943937,1757630082991,-400.0,0.000249,2]
[384943939,1757630090007,-400.0,0.000249,2]
[384943942,1757630098067,-419.65,0.000249,2]
[384943944,1757630105606,-400.0,0.000249,2]
[384943946,1757630119563,-150.0,0.000249,2]
[384943951,1757630160213,1041.92137584,0.0002,2]
[384943953,1757630171489,1041.8,0.0002,2]
[384943954,1757630173963,-59.91044049,0.000249,2]
[384943956,1757630185247,268.13906799,0.0002,2]
[384943957,1757630185274,773.66093201,0.0002,2]
[384943959,1757630196551,1041.8,0.0002,2]
[384943968,1757630207981,1041.8,0.0002,2]
[384943972,1757630221326,1041.8,0.0002,2]
[384943973,1757630228405,250.0,0.00015,2]
[384943974,1757630229543,300.0,0.00017,2]
[384943975,1757630232881,1041.8,0.0002,2]
[384943978,1757630247555,1041.8,0.0002,2]
[384943981,1757630258669,1041.8,0.0002,2]
[384943987,1757630278421,1041.8,0.0002,2]
[384943989,1757630283342,-438.77786565,0.000249,2]
[384943991,1757630290445,-400.0,0.000249,2]
[384943994,1757630297831,-397.4,0.000249,2]
[384943996,1757630305071,-400.0,0.000249,2]
[384944001,1757630327985,-160.0,0.00024528,2]
[384944042,1757630467195,-44.54932636,0.00024528,2]
[384944043,1757630467279,-310.90134728,0.000249,2]
[384944045,1757630474100,-400.0,0.000249,2]
[384944047,1757630481648,-381.7008523,0.000249,2]
[384944050,1757630489682,-505.46,0.000249,2]
[384944061,1757630550087,193.57,0.00016438,2]
[384944063,1757630552330,-152.06828795,0.00022783,2]
[384944065,1757630565039,-41.50171205,0.00022783,2]
[384944066,1757630565158,-76.3965759,0.00024775,2]
[384944072,1757630624888,-152.433103,0.00024775,2]
[384944079,1757630665223,-151.0,0.00024775,2]
[384944081,1757630677357,-150.0,0.00024775,2]
[384944083,1757630686893,196.0,0.00025817,120]
[384944084,1757630687099,196.0,0.00029044,120]
[384944085,1757630689852,-168.0,0.00024651,2]
[384944093,1757630734246,-150.0,0.00024633,2]
[384944094,1757630734304,-100.0,0.00024509,2]
[384944096,1757630746500,-151.0,0.00024509,2]
[384944099,1757630759482,-151.0,0.00024509,2]
[384944101,1757630783430,-910.27712324,0.00024509,2]
[384944102,1757630795533,-400.0,0.00024509,2]
[384944105,1757630819972,-187.921251,0.00024386,2]
[384944106,1757630832812,-194.53,0.00024386,2]
[384944107,1757630845088,-301.87218856,0.00024386,2]
[384944109,1757630857405,-159.72,0.00024386,2]
[384944110,1757630874527,170.45,0.00012722,2]
[384944119,1757630948129,-576.494286,0.00024509,2]
[384944120,1757630948151,-150.0,0.00024633,2]
[384944121,1757630948171,-150.0,0.00024633,2]
[384944122,1757630948192,-150.0,0.00024633,2]
[384944123,1757630948212,-150.0,0.00024633,2]
[384944124,1757630948233,-150.0,0.00024633,2]
[384944125,1757630948255,-150.0,0.00024633,2]
[384944126,1757630948276,-29.030714,0.00024633,2]
[384944127,1757630953231,-120.969286,0.00024633,2]
[384944139,1757631032000,-184.13,0.00024658,2]
[384944140,1757631032010,-300.0,0.00024861,2]
[384944141,1757631032019,-4510.5437637,0.00024862,2]
[384944142,1757631032029,-2209.66572854,0.000249,2]
[384944143,1757631032039,-300.0,0.0002496,2]
[384944144,1757631032048,-1200.0,0.0002496,2]
[384944145,1757631032058,-300.0,0.0002496,2]
[384944146,1757631032069,-3652.8394813,0.00024962,2]
[384944147,1757631032079,-1341.7119509,0.00024962,2]
[384944148,1757631032089,-1053.23444441,0.00025219,2]
[384944149,1757631032098,-150.99,0.00025219,2]
[384944150,1757631032108,-170.45,0.00025445,2]
[384944151,1757631032118,-150.0,0.00025471,2]
[384944152,1757631032128,-283.63,0.00025499,2]
[384944153,1757631032138,-200.0,0.00025514,2]
[384944154,1757631032148,-180.0,0.0002552,2]
[384944155,1757631032159,-180.64,0.00025552,2]
[384944156,1757631032168,-150.0,0.00025571,2]
[384944157,1757631032178,-222.46,0.00025571,2]
[384944158,1757631032188,-374.0,0.00025587,2]
[384944159,1757631032198,-1920.05103515,0.00025588,2]
[384944160,1757631032210,-689.70354623,0.00025588,2]
[384944161,1757631032223,-5207.98386901,0.00025588,2]
[384944162,1757631032232,-151.0,0.00025588,2]
[384944163,1757631032242,-257.91778498,0.00025588,2]
[384944164,1757631032252,-2600.67,0.00025591,2]
[384944165,1757631032261,-2138.43,0.00025712,2]
[384944166,1757631032270,-213.82876788,0.00025733,2]
[384944167,1757631032280,-317.34,0.00025737,2]
[384944168,1757631032289,-373.73,0.00025817,2]
[384944169,1757631032298,-689.36,0.00025821,2]
[384944170,1757631032308,-3839.2,0.00025847,2]
[384944171,1757631032317,-166.98,0.00025855,2]
[384944172,1757631032327,-322.6107,0.00025885,2]
[384944173,1757631032336,-160.0,0.00025895,2]
[384944174,1757631032346,-160.0,0.00025895,2]
[384944175,1757631032355,-515.37529716,0.00025895,2]
[384944176,1757631032365,-212.89373682,0.00025895,2]
[384944177,1757631032375,-3790.48698419,0.000259,2]
[384944178,1757631032387,-6429.51337409,0.000259,2]
[384944179,1757631032403,-490.24643896,0.000259,2]
[384944180,1757631032415,-301.24,0.000259,2]
[384944181,1757631032431,-2920.21598027,0.000259,2]
[384944182,1757631032441,-1487.95536,0.000259,2]
[384944183,1757631032453,-3847.331684,0.000259,2]
[384944184,1757631032464,-510.0,0.000259,2]
[384944185,1757631032476,-539.32061941,0.000259,2]
[384944186,1757631032487,-3639.02725584,0.000259,2]
[384944187,1757631032503,-412.19230324,0.000259,2]
[384944188,1757631032514,-184.17,0.00025918,7]
[384944189,1757631032523,-850.35641906,0.00025927,2]
[384944190,1757631032535,-2223.79160942,0.00025927,2]
[384944191,1757631032544,-666.0,0.00025927,3]
[384944192,1757631032554,-1457.64,0.00025938,2]
[384944193,1757631032564,-1235.16,0.00025955,2]
[384944194,1757631032573,-211.77315211,0.00025956,2]
[384944195,1757631032588,-867.48684789,0.00025956,2]
[384944196,1757631032598,-150.0,0.0002599,2]
[384944197,1757631032608,-821.7237488,0.00026131,2]
[384944198,1757631032617,-1541.25338957,0.00026223,2]
[384944199,1757631032629,-93.90661043,0.00026223,2]
[384944200,1757631032638,-166.52,0.00026405,2]
[384944201,1757631032648,-652.48,0.00026438,7]
[384944202,1757631032658,-854.80176529,0.00026474,2]
[384944203,1757631032668,-159.43331486,0.0002649,8]
[384944204,1757631032678,-9169.80472363,0.0002659,2]
[384944205,1757631032701,-1006.90123172,0.0002659,2]
[384944206,1757631032724,-4082.94452832,0.0002659,2]
[384944207,1757631032736,-18949.90971633,0.0002659,2]
[384944208,1757631032745,-1000.0,0.0002659,2]
[384944209,1757631032755,-2000.0,0.000266,2]
[384944210,1757631032764,-1395.29207179,0.0002662,2]
[384944218,1757631037354,-213.19462681,0.000248,2]
[384944220,1757631037365,-178.58708572,0.00025918,7]
[384944223,1757631037376,-115.65291428,0.00025918,7]
[384944225,1757631037386,-652.11597916,0.0002662,2]
[384944228,1757631037398,-3933.5086273,0.0002662,2]
[384944230,1757631037409,-1073.48568809,0.0002662,2]
[384944233,1757631037424,-360.63,0.0002662,2]
[384944236,1757631037443,-2330.60763366,0.0002662,2]
[384944237,1757631037452,-245.0,0.000268,2]
[384944240,1757631037461,-150.0,0.00026817,7]
[384944241,1757631037471,-404.33,0.00026817,2]
[384944244,1757631037480,-49.81236634,0.00026825,2]
[384944246,1757631037495,-250.18763366,0.00026825,2]
[384944248,1757631037504,-165.59953868,0.0002683,2]
[384944314,1757631037983,-15.04046132,0.0002683,2]
[384944317,1757631037993,-267.46074303,0.00026957,2]
[384944320,1757631038003,-197.0,0.00027,7]
[384944323,1757631038013,-112.59753194,0.00027,2]
[384944327,1757631038025,-429.8733612,0.00027,2]
[384944330,1757631038035,-250.0,0.00027116,2]
[384944333,1757631038044,-651.9474388,0.00027164,2]
[384944598,1757631040574,-1028.0525612,0.00027164,2]
[384944600,1757631040584,-6155.87847553,0.00027197,2]
[384944602,1757631040593,-334.5472959,0.00027254,2]
[384944604,1757631040603,-500.0,0.00027284,2]
[384944606,1757631040612,-500.0,0.00027284,2]
[384944608,1757631040621,-284.25553817,0.00027284,2]
[384944610,1757631040632,-215.74446183,0.00027284,2]
[384944612,1757631040642,-500.0,0.00027284,2]
[384944614,1757631040651,-500.0,0.00027284,2]
[384944617,1757631040661,-500.0,0.00027284,2]
[384944620,1757631040670,-500.0,0.00027284,2]
[384944623,1757631040679,-500.0,0.00027284,2]
[384944626,1757631040688,-500.0,0.00027284,2]
[384944628,1757631040697,-500.0,0.00027284,2]
[384944630,1757631040706,-237.40882809,0.00027284,2]
[384944632,1757631040715,-500.0,0.00027284,2]
[384944634,1757631040724,-500.0,0.00027284,2]
[384944636,1757631040733,-3994.06550481,0.00027287,2]
[384944638,1757631040744,-8943.78386462,0.00027287,2]
[384944640,1757631040756,-5209.65953057,0.00027287,2]
[384944642,1757631040765,-1000.0,0.00027287,2]
[384944645,1757631040775,-2500.0,0.00027287,2]
[384944647,1757631040784,-367.88913095,0.00027294,2]
[384944649,1757631040795,-8943.84023489,0.00027294,2]
[384944656,1757631040851,-2700.72171953,0.00027294,2]
[384944658,1757631040863,-356.7383719,0.00027294,2]
[384944660,1757631040877,-627.08232464,0.00027294,2]
[384944662,1757631040886,-5000.0,0.00027297,2]
[384944664,1757631040896,-152.58558665,0.00027297,2]
[384944666,1757631040904,-414.59320668,0.00027297,2]
[384944668,1757631040914,-153.0,0.0002732,2]
[384944671,1757631040923,-6155.87847544,0.00027333,2]
[384944673,1757631040932,-209.30640282,0.0002737,4]
[384944675,1757631040941,-500.97725384,0.00027373,2]
[384944677,1757631040950,-500.0,0.00027373,2]
[384944678,1757631040959,-505.80802827,0.00027373,2]
[384944679,1757631040969,-500.0,0.00027373,2]
[384944680,1757631040978,-500.0,0.00027373,2]
[384944681,1757631040987,-220.78051891,0.00027373,2]
[384944682,1757631040996,-459.15215661,0.00027373,2]
[384944683,1757631041006,-500.0,0.00027373,2]
[384944684,1757631041014,-500.0,0.00027373,2]
[384944685,1757631041023,-358.37136543,0.00027373,2]
[384944893,1757631042954,-141.62863457,0.00027373,2]
[384944895,1757631042964,-500.0,0.00027373,2]
[384944897,1757631042975,-501.37643265,0.00027373,2]
[384944899,1757631042985,-500.0,0.00027373,2]
[384944900,1757631042995,-158.94674655,0.00027373,2]
[384944901,1757631043005,-500.0,0.00027373,2]
[384944902,1757631043014,-500.0,0.00027373,2]
[384944903,1757631043024,-184.17,0.00027373,7]
[384944904,1757631043033,-294.24,0.00027373,7]
[384944905,1757631043043,-1804.33985138,0.00027376,10]
[384944906,1757631043052,-23306.31903055,0.00027387,2]
[384944908,1757631043081,-1665.05304173,0.00027387,2]
[384944935,1757631043327,-1641.73879662,0.00027387,2]
[384944937,1757631043337,-1427.63,0.00027387,2]
[384944939,1757631043347,-8167.1,0.00027394,7]
[384944941,1757631043357,-2300.0,0.00027396,7]
[384944943,1757631043368,-631.89258763,0.00027396,2]
[384944945,1757631043378,-800.0,0.00027396,7]
[384944947,1757631043388,-8166.0,0.00027396,7]
[384944949,1757631043398,-500.0,0.00027396,7]
[384944951,1757631043408,-400.0,0.00027397,7]
[384944953,1757631043417,-400.0,0.00027397,7]
[384944955,1757631043426,-239.56914478,0.00027397,7]
[384944957,1757631043436,-400.0,0.00027397,7]
[384944959,1757631043445,-400.0,0.00027397,7]
[384944961,1757631043454,-218.00305358,0.00027397,7]
[384944963,1757631043463,-400.0,0.00027397,7]
[384944965,1757631043473,-155.9317498,0.00027397,7]
[384944968,1757631043482,-158.085363,0.00027397,7]
[384944970,1757631043492,-165.135351,0.00027397,7]
[384944972,1757631043502,-158.523326,0.00027397,7]
[384944974,1757631043511,-418.12,0.00027397,7]
[384944976,1757631043520,-500.0,0.00027397,7]
[384944978,1757631043529,-400.0,0.00027397,7]
[384944980,1757631043539,-400.0,0.00027397,7]
[384944982,1757631043548,-400.0,0.00027397,7]
[384944984,1757631043558,-400.0,0.00027397,7]
[384944986,1757631043567,-400.0,0.00027397,7]
[384944988,1757631043576,-400.0,0.00027397,7]
[384944990,1757631043586,-400.0,0.00027397,7]
[384944992,1757631043595,-719.19,0.00027397,7]
[384944994,1757631043604,-286.80083824,0.00027397,7]
[384944996,1757631043614,-400.0,0.00027397,7]
[384944998,1757631043623,-400.0,0.00027397,7]
[384945000,1757631043632,-400.0,0.00027397,7]
[384945002,1757631043641,-400.0,0.00027397,7]
[384945004,1757631043651,-504.07,0.00027397,7]
[384945006,1757631043661,-400.0,0.00027397,7]
[384945008,1757631043670,-400.0,0.00027397,7]
[384945010,1757631043679,-150.0,0.00027397,2]
[384945012,1757631043689,-400.0,0.00027397,7]
[384945014,1757631043698,-732.75,0.00027397,7]
[384945016,1757631043707,-1026.92,0.00027397,7]
[384945018,1757631043716,-400.0,0.00027397,7]
[384945020,1757631043726,-400.0,0.00027397,7]
[384945022,1757631043735,-400.0,0.00027397,7]
[384945024,1757631043745,-1104.21,0.00027397,7]
[384945026,1757631043754,-400.0,0.00027397,7]
[384945028,1757631043763,-400.0,0.00027397,7]
[384945030,1757631043773,-400.0,0.00027397,7]
[384945032,1757631043782,-400.0,0.00027397,7]
[384945034,1757631043791,-400.0,0.00027397,7]
[384945036,1757631043801,-400.0,0.00027397,7]
[384945038,1757631043814,-400.0,0.00027397,7]
[384945040,1757631043823,-400.0,0.00027397,7]
[384945042,1757631043833,-518.03,0.00027397,7]
[384945044,1757631043842,-400.0,0.00027397,7]
[384945046,1757631043853,-400.0,0.00027397,7]
[384945048,1757631043862,-400.0,0.00027397,7]
[384945050,1757631043872,-400.0,0.00027397,7]
[384945052,1757631043882,-400.0,0.00027397,7]
[384945054,1757631043893,-500.0,0.00027397,2]
[384945056,1757631043903,-500.0,0.00027397,2]
[384945058,1757631043913,-400.0,0.00027397,7]
[384945060,1757631043922,-500.0,0.00027397,2]
[384945062,1757631043932,-400.0,0.00027397,7]
[384945064,1757631043941,-500.0,0.00027397,2]
[384945066,1757631043951,-330.9181643,0.00027397,7]
[384945068,1757631043960,-400.0,0.00027397,7]
[384945070,1757631043970,-400.0,0.00027397,7]
[384945072,1757631043980,-400.0,0.00027397,7]
[384945074,1757631043990,-400.0,0.00027397,7]
[384945076,1757631044000,-400.0,0.00027397,7]
[384945079,1757631044010,-400.0,0.00027397,7]
[384945081,1757631044023,-172.91362505,0.00027397,7]
[384945298,1757631045943,-227.08637495,0.00027397,7]
[384945301,1757631045953,-500.0,0.00027397,7]
[384945304,1757631045962,-289.5898095,0.00027397,7]
[384945307,1757631045974,-210.4101905,0.00027397,7]
[384945310,1757631045983,-400.0,0.00027397,7]
[384945313,1757631045992,-725.37,0.00027397,7]
[384945316,1757631046001,-400.0,0.00027397,7]
[384945319,1757631046011,-616.52,0.00027397,7]
[384945322,1757631046020,-400.0,0.00027397,7]
[384945325,1757631046029,-400.0,0.00027397,7]
[384945328,1757631046039,-400.0,0.00027397,7]
[384945332,1757631046048,-400.0,0.00027397,7]
[384945334,1757631046057,-400.0,0.00027397,7]
[384945338,1757631046067,-761.69,0.00027397,7]
[384945341,1757631046076,-400.0,0.00027397,7]
[384945344,1757631046085,-400.0,0.00027397,7]
[384945345,1757631046094,-400.0,0.00027397,7]
[384945347,1757631046103,-400.0,0.00027397,7]
[384945349,1757631046112,-400.0,0.00027397,7]
[384945352,1757631046121,-400.0,0.00027397,7]
[384945355,1757631046130,-400.0,0.00027397,7]
[384945358,1757631046140,-400.0,0.00027397,7]
[384945361,1757631046150,-523.96,0.00027397,7]